{"text_format":"1","workbook":"xlsx","n_sheets":2,"sheets":["Лист1","Комментарии-в-1"],"not_rendered":{"charts":0,"images":0,"macros":1,"external_links":0,"defined_names":2,"comments":0,"pivot_tables":0},"unopened":[],"bounds":{"document_bytes":16777216,"sheet_cells":100000,"rows_first":2000,"rows_last":500,"rows_between":2000,"halvings":0,"cell_chars":16384,"cell_head_chars":4096},"cells_cut":0,"cells_raw":0,"read":"whole","date_system":"1900"}

{"sheet":"Лист1","index":0,"n_rows":82,"n_cols":22,"rows_kept":82,"cut":false,"hidden":false,"merged":[]}
[null,null,null,null,null,null,null,null,null,null,null,null,null,"так получается - не правильно",null,null,null,null,"так пытаюсь сделать через PQ"]
["Показатели","1 кв.","Комментарии","2 кв.","1 п/г","Комментарии2","3 кв.","9 мес.","Комментарии3","4 кв.","год","Комментарии4",null,"Показатели","Период","Значение","Комментарии",null,"Показатели","Период","Значение","Комментарии"]
["Показатель 1",9474,"текст 1",7482,{"$f":"B3+D3","v":16956},"текст 10",9550,{"$f":"E3+G3","v":26506},"текст 100",4547,{"$f":"H3+J3","v":31053},"текст 150",null,"Показатель 1","1 кв.",9474,"текст 1",null,"Показатель 1","1 кв.",9474,"текст 1"]
["Показатель 2",8277,"текст 2",5646,{"$f":"B4+D4","v":13923},"текст 11",8315,{"$f":"E4+G4","v":22238},"текст 101",6080,{"$f":"H4+J4","v":28318},"текст 151",null,"Показатель 1","2 кв.",7482,"текст 1",null,"Показатель 1","2 кв.",7482]
["Показатель 3",7210,"текст 3",1083,8293,"текст 12",1920,10213,"текст 102",3700,13913,"текст 152",null,"Показатель 1","1 п/г",16956,"текст 1",null,"Показатель 1","1 п/г",16956,"текст 10"]
["Показатель 4",4234,"текст 4",2570,6804,"текст 13",9682,16486,"текст 103",4264,20750,"текст 153",null,"Показатель 1","Комментарии2","текст 10","текст 1",null,"Показатель 1","3 кв.",9550]
["Показатель 5",4629,"текст 5",2858,7487,"текст 14",1340,8827,"текст 104",9348,18175,"текст 154",null,"Показатель 1","3 кв.",9550,"текст 1",null,"Показатель 1","9 мес.",26506,"текст 100"]
["Показатель 6",1307,"текст 6",6878,8185,"текст 15",9030,17215,"текст 105",6514,23729,"текст 155",null,"Показатель 1","9 мес.",26506,"текст 1",null,"Показатель 1","4 кв.",4547]
["Показатель 7",1234,"текст 7",8300,9534,"текст 16",7085,16619,"текст 106",5301,21920,"текст 156",null,"Показатель 1","Комментарии3","текст 100","текст 1",null,"Показатель 1","год",31053,"текст 150"]
["Показатель 8",2658,"текст 8",5280,7938,"текст 17",4970,12908,"текст 107",6315,19223,"текст 157",null,"Показатель 1","4 кв.",4547,"текст 1"]
[null,null,null,null,null,null,null,null,null,null,null,null,null,"Показатель 1","год",31053,"текст 1"]
[null,null,null,null,null,null,null,null,null,null,null,null,null,"Показатель 1","Комментарии4","текст 150","текст 1"]
[null,null,null,null,null,null,null,null,null,null,null,null,null,"Показатель 2","1 кв.",8277,"текст 2"]
[null,null,null,null,null,null,null,null,null,null,null,null,null,"Показатель 2","2 кв.",5646,"текст 2"]
[null,null,null,null,null,null,null,null,null,null,null,null,null,"Показатель 2","1 п/г",13923,"текст 2"]
[null,null,null,null,null,null,null,null,null,null,null,null,null,"Показатель 2","Комментарии2","текст 11","текст 2"]
[null,null,null,null,null,null,null,null,null,null,null,null,null,"Показатель 2","3 кв.",8315,"текст 2"]
[null,null,null,null,null,null,null,null,null,null,null,null,null,"Показатель 2","9 мес.",22238,"текст 2"]
[null,null,null,null,null,null,null,null,null,null,null,null,null,"Показатель 2","Комментарии3","текст 101","текст 2"]
[null,null,null,null,null,null,null,null,null,null,null,null,null,"Показатель 2","4 кв.",6080,"текст 2"]
[null,null,null,null,null,null,null,null,null,null,null,null,null,"Показатель 2","год",28318,"текст 2"]
[null,null,null,null,null,null,null,null,null,null,null,null,null,"Показатель 2","Комментарии4","текст 151","текст 2"]
[null,null,null,null,null,null,null,null,null,null,null,null,null,"Показатель 3","1 кв.",7210,"текст 3"]
[null,null,null,null,null,null,null,null,null,null,null,null,null,"Показатель 3","2 кв.",1083,"текст 3"]
[null,null,null,null,null,null,null,null,null,null,null,null,null,"Показатель 3","1 п/г",8293,"текст 3"]
[null,null,null,null,null,null,null,null,null,null,null,null,null,"Показатель 3","Комментарии2","текст 12","текст 3"]
[null,null,null,null,null,null,null,null,null,null,null,null,null,"Показатель 3","3 кв.",1920,"текст 3"]
[null,null,null,null,null,null,null,null,null,null,null,null,null,"Показатель 3","9 мес.",10213,"текст 3"]
[null,null,null,null,null,null,null,null,null,null,null,null,null,"Показатель 3","Комментарии3","текст 102","текст 3"]
[null,null,null,null,null,null,null,null,null,null,null,null,null,"Показатель 3","4 кв.",3700,"текст 3"]
[null,null,null,null,null,null,null,null,null,null,null,null,null,"Показатель 3","год",13913,"текст 3"]
[null,null,null,null,null,null,null,null,null,null,null,null,null,"Показатель 3","Комментарии4","текст 152","текст 3"]
[null,null,null,null,null,null,null,null,null,null,null,null,null,"Показатель 4","1 кв.",4234,"текст 4"]
[null,null,null,null,null,null,null,null,null,null,null,null,null,"Показатель 4","2 кв.",2570,"текст 4"]
[null,null,null,null,null,null,null,null,null,null,null,null,null,"Показатель 4","1 п/г",6804,"текст 4"]
[null,null,null,null,null,null,null,null,null,null,null,null,null,"Показатель 4","Комментарии2","текст 13","текст 4"]
[null,null,null,null,null,null,null,null,null,null,null,null,null,"Показатель 4","3 кв.",9682,"текст 4"]
[null,null,null,null,null,null,null,null,null,null,null,null,null,"Показатель 4","9 мес.",16486,"текст 4"]
[null,null,null,null,null,null,null,null,null,null,null,null,null,"Показатель 4","Комментарии3","текст 103","текст 4"]
[null,null,null,null,null,null,null,null,null,null,null,null,null,"Показатель 4","4 кв.",4264,"текст 4"]
[null,null,null,null,null,null,null,null,null,null,null,null,null,"Показатель 4","год",20750,"текст 4"]
[null,null,null,null,null,null,null,null,null,null,null,null,null,"Показатель 4","Комментарии4","текст 153","текст 4"]
[null,null,null,null,null,null,null,null,null,null,null,null,null,"Показатель 5","1 кв.",4629,"текст 5"]
[null,null,null,null,null,null,null,null,null,null,null,null,null,"Показатель 5","2 кв.",2858,"текст 5"]
[null,null,null,null,null,null,null,null,null,null,null,null,null,"Показатель 5","1 п/г",7487,"текст 5"]
[null,null,null,null,null,null,null,null,null,null,null,null,null,"Показатель 5","Комментарии2","текст 14","текст 5"]
[null,null,null,null,null,null,null,null,null,null,null,null,null,"Показатель 5","3 кв.",1340,"текст 5"]
[null,null,null,null,null,null,null,null,null,null,null,null,null,"Показатель 5","9 мес.",8827,"текст 5"]
[null,null,null,null,null,null,null,null,null,null,null,null,null,"Показатель 5","Комментарии3","текст 104","текст 5"]
[null,null,null,null,null,null,null,null,null,null,null,null,null,"Показатель 5","4 кв.",9348,"текст 5"]
[null,null,null,null,null,null,null,null,null,null,null,null,null,"Показатель 5","год",18175,"текст 5"]
[null,null,null,null,null,null,null,null,null,null,null,null,null,"Показатель 5","Комментарии4","текст 154","текст 5"]
[null,null,null,null,null,null,null,null,null,null,null,null,null,"Показатель 6","1 кв.",1307,"текст 6"]
[null,null,null,null,null,null,null,null,null,null,null,null,null,"Показатель 6","2 кв.",6878,"текст 6"]
[null,null,null,null,null,null,null,null,null,null,null,null,null,"Показатель 6","1 п/г",8185,"текст 6"]
[null,null,null,null,null,null,null,null,null,null,null,null,null,"Показатель 6","Комментарии2","текст 15","текст 6"]
[null,null,null,null,null,null,null,null,null,null,null,null,null,"Показатель 6","3 кв.",9030,"текст 6"]
[null,null,null,null,null,null,null,null,null,null,null,null,null,"Показатель 6","9 мес.",17215,"текст 6"]
[null,null,null,null,null,null,null,null,null,null,null,null,null,"Показатель 6","Комментарии3","текст 105","текст 6"]
[null,null,null,null,null,null,null,null,null,null,null,null,null,"Показатель 6","4 кв.",6514,"текст 6"]
[null,null,null,null,null,null,null,null,null,null,null,null,null,"Показатель 6","год",23729,"текст 6"]
[null,null,null,null,null,null,null,null,null,null,null,null,null,"Показатель 6","Комментарии4","текст 155","текст 6"]
[null,null,null,null,null,null,null,null,null,null,null,null,null,"Показатель 7","1 кв.",1234,"текст 7"]
[null,null,null,null,null,null,null,null,null,null,null,null,null,"Показатель 7","2 кв.",8300,"текст 7"]
[null,null,null,null,null,null,null,null,null,null,null,null,null,"Показатель 7","1 п/г",9534,"текст 7"]
[null,null,null,null,null,null,null,null,null,null,null,null,null,"Показатель 7","Комментарии2","текст 16","текст 7"]
[null,null,null,null,null,null,null,null,null,null,null,null,null,"Показатель 7","3 кв.",7085,"текст 7"]
[null,null,null,null,null,null,null,null,null,null,null,null,null,"Показатель 7","9 мес.",16619,"текст 7"]
[null,null,null,null,null,null,null,null,null,null,null,null,null,"Показатель 7","Комментарии3","текст 106","текст 7"]
[null,null,null,null,null,null,null,null,null,null,null,null,null,"Показатель 7","4 кв.",5301,"текст 7"]
[null,null,null,null,null,null,null,null,null,null,null,null,null,"Показатель 7","год",21920,"текст 7"]
[null,null,null,null,null,null,null,null,null,null,null,null,null,"Показатель 7","Комментарии4","текст 156","текст 7"]
[null,null,null,null,null,null,null,null,null,null,null,null,null,"Показатель 8","1 кв.",2658,"текст 8"]
[null,null,null,null,null,null,null,null,null,null,null,null,null,"Показатель 8","2 кв.",5280,"текст 8"]
[null,null,null,null,null,null,null,null,null,null,null,null,null,"Показатель 8","1 п/г",7938,"текст 8"]
[null,null,null,null,null,null,null,null,null,null,null,null,null,"Показатель 8","Комментарии2","текст 17","текст 8"]
[null,null,null,null,null,null,null,null,null,null,null,null,null,"Показатель 8","3 кв.",4970,"текст 8"]
[null,null,null,null,null,null,null,null,null,null,null,null,null,"Показатель 8","9 мес.",12908,"текст 8"]
[null,null,null,null,null,null,null,null,null,null,null,null,null,"Показатель 8","Комментарии3","текст 107","текст 8"]
[null,null,null,null,null,null,null,null,null,null,null,null,null,"Показатель 8","4 кв.",6315,"текст 8"]
[null,null,null,null,null,null,null,null,null,null,null,null,null,"Показатель 8","год",19223,"текст 8"]
[null,null,null,null,null,null,null,null,null,null,null,null,null,"Показатель 8","Комментарии4","текст 157","текст 8"]

{"sheet":"Комментарии-в-1","index":1,"n_rows":10,"n_cols":13,"rows_kept":10,"cut":false,"hidden":false,"merged":[]}
[]
["Показатели","1 кв.","Комментарии","2 кв.","1 п/г","Комментарии2","3 кв.","9 мес.","Комментарии3","4 кв.","год","Комментарии4","Комментарии5"]
["Показатель 1",9474,"текст 1",7482,{"$f":"B3+D3","v":16956},"текст 10",9550,{"$f":"E3+G3","v":26506},"текст 100",4547,{"$f":"H3+J3","v":31053},"текст 150","текст 1;текст 10;текст 100;текст 150;"]
["Показатель 2",8277,"текст 2",5646,13923,"текст 11",8315,22238,"текст 101",6080,28318,"текст 151","текст 2;текст 11;текст 101;текст 151;"]
["Показатель 3",7210,"текст 3",1083,8293,"текст 12",1920,10213,"текст 102",3700,13913,"текст 152","текст 3;текст 12;текст 102;текст 152;"]
["Показатель 4",4234,"текст 4",2570,6804,"текст 13",9682,16486,"текст 103",4264,20750,"текст 153","текст 4;текст 13;текст 103;текст 153;"]
["Показатель 5",4629,"текст 5",2858,7487,"текст 14",1340,8827,"текст 104",9348,18175,"текст 154","текст 5;текст 14;текст 104;текст 154;"]
["Показатель 6",1307,"текст 6",6878,8185,"текст 15",9030,17215,"текст 105",6514,23729,"текст 155","текст 6;текст 15;текст 105;текст 155;"]
["Показатель 7",1234,"текст 7",8300,9534,"текст 16",7085,16619,"текст 106",5301,21920,"текст 156","текст 7;текст 16;текст 106;текст 156;"]
["Показатель 8",2658,"текст 8",5280,7938,"текст 17",4970,12908,"текст 107",6315,19223,"текст 157","текст 8;текст 17;текст 107;текст 157;"]